[Event "1er Festival international de Cassis 2022"]
[Site "Cassis"]
[Date "2022.05.26"]
[Round "1.1"]
[White "Gozzoli, Yannick"]
[Black "Cabrit, Pierre"]
[Result "1-0"]
[TimeControl "1 h 30 + 30 s"]
[WhiteElo "2591"]
[BlackElo "1847"]

1. d4 {[%clk 01:30:57]} {[%emt 00:00:02]} g6 {[%clk 01:30:54]} {[%emt
00:00:07]} 2. c4 {[%clk 01:31:02]} {[%emt 00:00:24]} Bg7 {[%clk 01:31:16]}
{[%emt 00:00:09]} 3. Nf3 {[%clk 01:30:56]} {[%emt 00:00:36]} d6 {[%clk
01:27:39]} {[%emt 00:04:09]} 4. Nc3 {[%clk 01:25:22]} {[%emt 00:06:03]} Nc6
{[%clk 01:25:22]} {[%emt 00:02:47]} 5. d5 {[%clk 01:24:31]} {[%emt 00:01:21]}
Ne5 {[%clk 01:20:18]} {[%emt 00:05:34]} 6. Nxe5 {[%clk 01:23:59]} {[%emt
00:01:02]} Bxe5 {[%clk 01:20:18]} {[%emt 00:00:30]} 7. e4 {[%clk 01:24:23]}
{[%emt 00:00:05]} Bg7 {[%clk 01:12:59]} {[%emt 00:07:50]} 8. Bd3 {[%clk
01:24:46]} {[%emt 00:00:06]} Nf6 {[%clk 01:12:26]} {[%emt 00:01:04]} 9. O-O
{[%clk 01:25:09]} {[%emt 00:00:06]} O-O {[%clk 01:11:47]} {[%emt 00:01:10]} 10.
h3 {[%clk 01:25:00]} {[%emt 00:00:39]} Nd7 {[%clk 01:08:20]} {[%emt 00:03:58]}
11. f4 {[%clk 01:21:23]} {[%emt 00:04:05]} Nc5 {[%clk 01:05:41]} {[%emt
00:03:10]} 12. Bc2 {[%clk 01:17:15]} {[%emt 00:04:38]} f5 {[%clk 00:59:39]}
{[%emt 00:06:33]} 13. exf5 {[%clk 01:17:04]} {[%emt 00:00:41]} Bxf5 {[%clk
00:59:25]} {[%emt 00:00:44]} 14. Bxf5 {[%clk 01:13:57]} {[%emt 00:03:37]} Rxf5
{[%clk 00:54:59]} {[%emt 00:04:56]} 15. Be3 {[%clk 01:09:05]} {[%emt 00:05:22]}
e6 {[%clk 00:44:59]} {[%emt 00:10:31]} 16. g4 {[%clk 01:03:46]} {[%emt
00:05:48]} Qh4 {[%clk 00:37:49]} {[%emt 00:07:40]} 17. Kg2 {[%clk 00:59:31]}
{[%emt 00:04:45]} Rff8 {[%clk 00:28:59]} {[%emt 00:09:20]} 18. Bxc5 {[%clk
00:56:27]} {[%emt 00:03:33]} dxc5 {[%clk 00:27:25]} {[%emt 00:02:05]} 19. dxe6
{[%clk 00:56:49]} {[%emt 00:00:08]} c6 {[%clk 00:24:59]} {[%emt 00:02:57]} 20.
Ne4 {[%clk 00:53:04]} {[%emt 00:04:15]} Rad8 {[%clk 00:23:49]} {[%emt
00:01:39]} 21. Qe2 {[%clk 00:53:23]} {[%emt 00:00:10]} Qe7 {[%clk 00:21:43]}
{[%emt 00:02:37]} 22. f5 {[%emt 00:02:55]} Rd4 {[%clk 00:20:49]} 23. Rae1
{[%clk 00:52:00]} {[%emt 00:00:52]} gxf5 {[%clk 00:17:04]} {[%emt 00:04:16]} 24.
gxf5 {[%clk 00:52:12]} {[%emt 00:00:18]} Kh8 {[%clk 00:16:33]} {[%emt
00:01:01]} 25. f6 {[%clk 00:51:25]} {[%emt 00:01:17]} Rxe4 {[%clk 00:14:44]}
{[%emt 00:02:20]} 26. fxe7 {[%clk 00:51:23]} {[%emt 00:00:32]} Rxe2+ {[%clk
00:15:03]} {[%emt 00:00:10]} 27. Rxe2 {[%clk 00:51:48]} {[%emt 00:00:05]} Rg8
{[%clk 00:13:32]} {[%emt 00:02:02]} 28. Kh1 {[%clk 00:52:07]} {[%emt 00:00:10]}
1-0

[Event "1er Festival international de Cassis 2022"]
[Site "Cassis"]
[Date "2022.05.26"]
[Round "1.2"]
[White "Bouton, Come"]
[Black "Kunin, Vitaly"]
[Result "0-1"]
[TimeControl "1 h 30 + 30 s"]
[WhiteElo "1846"]
[BlackElo "2539"]

1. e4 {[%clk 01:30:57]} {[%emt 00:00:02]} d6 {[%clk 01:30:46]} {[%emt
00:00:13]} 2. d4 {[%clk 01:31:04]} {[%emt 00:00:23]} Nf6 {[%clk 01:31:05]}
{[%emt 00:00:10]} 3. Nc3 {[%clk 01:31:11]} {[%emt 00:00:25]} Nbd7 {[%clk
01:31:22]} {[%emt 00:00:12]} 4. Bc4 {[%clk 01:30:17]} {[%emt 00:01:24]} e5
{[%clk 01:31:24]} {[%emt 00:00:27]} 5. Nf3 {[%clk 01:29:43]} {[%emt 00:01:05]}
Be7 {[%clk 01:31:40]} {[%emt 00:00:14]} 6. Be3 {[%clk 01:27:12]} {[%emt
00:03:02]} O-O {[%clk 01:30:47]} {[%emt 00:01:21]} 7. Qe2 {[%clk 01:22:27]}
{[%emt 00:05:16]} c6 {[%clk 01:27:41]} {[%emt 00:03:36]} 8. Bb3 {[%clk
01:21:29]} {[%emt 00:01:29]} b5 {[%clk 01:24:48]} {[%emt 00:03:23]} 9. a3
{[%clk 01:19:25]} {[%emt 00:02:35]} a5 {[%clk 01:14:25]} {[%emt 00:10:53]} 10.
d5 {[%clk 00:44:32]} {[%emt 00:35:23]} Bb7 {[%clk 01:14:07]} {[%emt 00:00:47]}
11. dxc6 {[%clk 00:38:36]} {[%emt 00:06:27]} Bxc6 {[%clk 01:14:24]} {[%emt
00:00:11]} 12. Nd2 {[%clk 00:36:19]} {[%emt 00:02:48]} b4 {[%clk 01:12:20]}
{[%emt 00:02:34]} 13. Nd5 {[%clk 00:35:42]} {[%emt 00:01:08]} Bxd5 {[%clk
01:08:04]} {[%emt 00:04:45]} 14. exd5 {[%clk 00:34:32]} {[%emt 00:01:41]} a4
{[%clk 01:07:55]} {[%emt 00:00:39]} 15. Bc4 {[%clk 00:31:42]} {[%emt 00:03:21]}
Nb6 {[%clk 01:06:33]} {[%emt 00:01:50]} 16. Qd3 {[%clk 00:30:30]} {[%emt
00:01:43]} bxa3 {[%clk 00:59:31]} {[%emt 00:07:32]} 17. Rxa3 {[%clk 00:29:38]}
{[%emt 00:01:22]} Ng4 {[%clk 00:57:20]} {[%emt 00:02:41]} 18. O-O {[%clk
00:27:39]} {[%emt 00:02:30]} f5 {[%clk 00:56:01]} {[%emt 00:01:47]} 19. Rfa1
{[%clk 00:16:15]} {[%emt 00:11:55]} Nxe3 {[%clk 00:54:24]} {[%emt 00:02:06]} 20.
fxe3 {[%clk 00:16:23]} {[%emt 00:00:23]} e4 {[%clk 00:53:36]} {[%emt 00:01:18]}
21. Qe2 {[%clk 00:15:31]} {[%emt 00:01:23]} Rc8 {[%clk 00:52:06]} {[%emt
00:01:59]} 22. c3 {[%clk 00:14:38]} {[%emt 00:01:24]} Kh8 {[%clk 00:44:46]}
{[%emt 00:07:49]} 23. Rd1 {[%clk 00:08:03]} {[%emt 00:07:05]} Bg5 {[%clk
00:39:29]} {[%emt 00:05:46]} 24. Kh1 {[%clk 00:05:09]} {[%emt 00:03:26]} Bxe3
{[%clk 00:37:38]} {[%emt 00:02:20]} 25. Qxe3 {[%clk 00:04:12]} {[%emt
00:01:28]} Nxc4 {[%clk 00:37:58]} {[%emt 00:00:10]} 26. Nxc4 {[%clk 00:04:20]}
{[%emt 00:00:22]} Rxc4 {[%clk 00:38:19]} {[%emt 00:00:08]} 27. Rd4 {[%clk
00:01:41]} {[%emt 00:03:10]} Rxd4 {[%clk 00:33:10]} {[%emt 00:05:39]} 28. Qxd4
{[%clk 00:01:33]} {[%emt 00:00:38]} Qb8 {[%clk 00:33:29]} {[%emt 00:00:10]} 29.
Rxa4 {[%clk 00:00:49]} {[%emt 00:01:14]} Qxb2 {[%clk 00:33:45]} {[%emt
00:00:13]} 30. h3 {[%clk 00:01:11]} {[%emt 00:00:09]} h6 {[%clk 00:32:08]}
{[%emt 00:02:07]} 31. Kh2 {[%clk 00:00:55]} {[%emt 00:00:47]} Rf6 {[%clk
00:30:45]} {[%emt 00:01:53]} 32. Ra7 {[%clk 00:00:33]} {[%emt 00:00:53]} Rg6
{[%clk 00:30:49]} {[%emt 00:00:25]} 33. Qg1 {[%clk 00:00:35]} {[%emt 00:00:27]}
Qxc3 {[%clk 00:30:52]} {[%emt 00:00:28]} 34. g3 {[%clk 00:00:40]} {[%emt
00:00:26]} Qd2+ {[%clk 00:30:24]} {[%emt 00:00:58]} 35. Qg2 {[%clk 00:00:45]}
{[%emt 00:00:25]} Qxd5 {[%clk 00:30:37]} {[%emt 00:00:17]} 36. Qf2 {[%clk
00:00:47]} {[%emt 00:00:29]} Kh7 {[%clk 00:30:34]} {[%emt 00:00:32]} 37. Ra3
{[%clk 00:00:49]} {[%emt 00:00:29]} Qe5 {[%clk 00:30:45]} {[%emt 00:00:18]} 0-1

[Event "1er Festival international de Cassis 2022"]
[Site "Cassis"]
[Date "2022.05.26"]
[Round "1.3"]
[White "Sivuk, Vitaly"]
[Black "Auribault, Louis"]
[Result "1-0"]
[TimeControl "1 h 30 + 30 s"]
[WhiteElo "2529"]
[BlackElo "1819"]

1. d4 {[%clk 01:30:56]} {[%emt 00:00:03]} d5 {[%clk 01:30:43]} {[%emt
00:00:17]} 2. c4 {[%clk 01:31:15]} {[%emt 00:00:11]} c6 {[%clk 01:30:28]}
{[%emt 00:00:46]} 3. Nf3 {[%clk 01:31:34]} {[%emt 00:00:11]} Nf6 {[%clk
01:30:34]} {[%emt 00:00:24]} 4. Nc3 {[%clk 01:31:46]} {[%emt 00:00:17]} e6
{[%clk 01:30:07]} {[%emt 00:00:58]} 5. Bg5 {[%clk 01:31:22]} {[%emt 00:00:54]}
Nbd7 {[%clk 01:29:04]} {[%emt 00:01:33]} 6. e3 {[%clk 01:31:35]} {[%emt
00:00:16]} Qa5 {[%clk 01:27:00]} {[%emt 00:02:35]} 7. cxd5 {[%clk 01:31:14]}
{[%emt 00:00:51]} Nxd5 {[%emt 00:01:03]} 8. Qd2 {[%clk 01:31:34]} {[%emt
00:00:07]} Bb4 {[%clk 01:25:53]} {[%emt 00:01:07]} 9. Rc1 {[%clk 01:31:55]}
{[%emt 00:00:08]} Nxc3 {[%clk 01:25:41]} {[%emt 00:00:43]} 10. bxc3 {[%clk
01:32:17]} {[%emt 00:00:08]} Ba3 {[%clk 01:25:59]} {[%emt 00:00:12]} 11. Rc2
{[%clk 01:31:55]} {[%emt 00:00:51]} b6 {[%clk 01:25:28]} {[%emt 00:01:01]} 12.
Bd3 {[%clk 01:30:33]} {[%emt 00:01:52]} Ba6 {[%clk 01:25:14]} {[%emt 00:00:45]}
13. O-O {[%clk 01:30:17]} {[%emt 00:00:46]} Bxd3 {[%clk 01:24:38]} {[%emt
00:01:06]} 14. Qxd3 {[%clk 01:30:40]} {[%emt 00:00:07]} O-O {[%clk 01:23:57]}
{[%emt 00:01:11]} 15. c4 {[%clk 01:29:02]} {[%emt 00:02:08]} e5 {[%clk
01:18:07]} {[%emt 00:06:20]} 16. Qf5 {[%clk 01:25:27]} {[%emt 00:04:04]} Qa4
{[%clk 01:12:19]} {[%emt 00:06:19]} 17. Rc3 {[%clk 01:17:11]} {[%emt 00:08:46]}
exd4 {[%clk 01:05:46]} {[%emt 00:07:03]} 18. exd4 {[%clk 01:17:35]} {[%emt
00:00:06]} Bb4 {[%clk 01:06:05]} {[%emt 00:00:12]} 19. Re3 {[%clk 01:16:01]}
{[%emt 00:02:02]} c5 {[%clk 00:54:52]} {[%emt 00:11:44]} 20. d5 {[%clk
01:14:00]} {[%emt 00:02:31]} f6 {[%clk 00:53:57]} {[%emt 00:01:26]} 21. Bf4
{[%clk 01:10:13]} {[%emt 00:04:17]} Rfe8 {[%clk 00:53:11]} {[%emt 00:01:16]} 22.
Bd6 {[%clk 01:08:05]} {[%emt 00:02:37]} Nf8 {[%clk 00:40:42]} {[%emt 00:12:59]}
23. Bxf8 {[%clk 01:07:49]} {[%emt 00:00:45]} Rxf8 {[%clk 00:40:51]} {[%emt
00:00:21]} 24. Re7 {[%clk 01:03:24]} {[%emt 00:04:55]} Rfe8 {[%clk 00:38:34]}
{[%emt 00:02:47]} 25. Qe6+ {[%clk 01:02:09]} {[%emt 00:01:44]} Kh8 {[%clk
00:38:35]} {[%emt 00:00:30]} 26. d6 {[%clk 01:02:20]} {[%emt 00:00:18]} Rxe7
{[%clk 00:33:04]} {[%emt 00:06:02]} 27. dxe7 {[%clk 01:02:15]} {[%emt
00:00:34]} Bc3 {[%clk 00:27:27]} {[%emt 00:06:07]} 28. h4 {[%clk 01:01:39]}
{[%emt 00:01:06]} Re8 {[%clk 00:26:08]} {[%emt 00:01:49]} 29. h5 {[%clk
01:01:00]} {[%emt 00:01:09]} b5 {[%clk 00:23:45]} {[%emt 00:02:54]} 30. Qd7
{[%clk 01:00:19]} {[%emt 00:01:11]} 1-0

[Event "1er Festival international de Cassis 2022"]
[Site "Cassis"]
[Date "2022.05.26"]
[Round "1.4"]
[White "Martin, Nils"]
[Black "Yankelevich, Lev"]
[Result "0-1"]
[TimeControl "1 h 30 + 30 s"]
[WhiteElo "1811"]
[BlackElo "2473"]

1. e4 {[%clk 01:30:52]} {[%emt 00:00:07]} c6 {[%clk 01:30:00]} {[%emt
00:01:01]} 2. d4 {[%clk 01:31:14]} {[%emt 00:00:08]} d5 {[%clk 01:30:26]}
{[%emt 00:00:04]} 3. Nd2 {[%clk 01:31:35]} {[%emt 00:00:09]} dxe4 {[%clk
01:30:50]} {[%emt 00:00:06]} 4. Nxe4 {[%clk 01:31:59]} {[%emt 00:00:06]} Nf6
{[%clk 01:31:17]} {[%emt 00:00:03]} 5. Nxf6+ {[%clk 01:32:14]} {[%emt
00:00:15]} exf6 {[%clk 01:31:41]} {[%emt 00:00:05]} 6. c3 {[%clk 01:31:05]}
{[%emt 00:01:40]} Bd6 {[%clk 01:32:07]} {[%emt 00:00:05]} 7. Bd3 {[%clk
01:30:59]} {[%emt 00:00:36]} O-O {[%clk 01:32:29]} {[%emt 00:00:08]} 8. Ne2
{[%clk 01:30:00]} {[%emt 00:01:29]} Re8 {[%clk 01:32:37]} {[%emt 00:00:22]} 9.
O-O {[%clk 01:29:25]} {[%emt 00:01:04]} Nd7 {[%clk 01:32:00]} {[%emt 00:01:07]}
10. Bf4 {[%clk 01:26:45]} {[%emt 00:03:10]} Nf8 {[%clk 01:32:00]} {[%emt
00:00:31]} 11. Bxd6 {[%clk 01:26:11]} {[%emt 00:01:05]} Qxd6 {[%clk 01:32:27]}
{[%emt 00:00:02]} 12. Ng3 {[%clk 01:25:25]} {[%emt 00:01:15]} Be6 {[%clk
01:28:22]} {[%emt 00:04:35]} 13. Qc2 {[%clk 01:23:07]} {[%emt 00:02:49]} Rad8
{[%clk 01:27:30]} {[%emt 00:01:22]} 14. Rfe1 {[%clk 01:20:21]} {[%emt
00:03:16]} Ng6 {[%clk 01:24:53]} {[%emt 00:03:07]} 15. b3 {[%clk 01:16:35]}
{[%emt 00:04:17]} Bd5 {[%clk 01:18:08]} {[%emt 00:07:14]} 16. Rad1 {[%clk
01:13:18]} {[%emt 00:03:47]} Qf4 {[%clk 01:14:01]} {[%emt 00:04:37]} 17. f3
{[%clk 01:08:55]} {[%emt 00:04:54]} Rxe1+ {[%clk 01:10:07]} {[%emt 00:04:24]}
18. Rxe1 {[%clk 01:06:48]} {[%emt 00:02:37]} Be6 {[%clk 01:07:30]} {[%emt
00:03:07]} 19. Bf5 {[%clk 00:57:48]} {[%emt 00:09:31]} Nf8 {[%clk 01:05:36]}
{[%emt 00:02:23]} 20. Be4 {[%clk 00:56:09]} {[%emt 00:02:09]} g6 {[%clk
01:05:35]} {[%emt 00:00:31]} 21. Qc1 {[%clk 00:51:01]} {[%emt 00:05:39]} Qd6
{[%clk 01:03:24]} {[%emt 00:02:41]} 22. Bb1 {[%clk 00:49:45]} {[%emt 00:01:46]}
f5 {[%clk 01:03:40]} {[%emt 00:00:14]} 23. Qg5 {[%clk 00:49:02]} {[%emt
00:01:12]} c5 {[%clk 01:03:55]} {[%emt 00:00:15]} 24. Rd1 {[%clk 00:35:11]}
{[%emt 00:14:20]} Qb6 {[%clk 01:01:08]} {[%emt 00:03:17]} 25. Ne2 {[%clk
00:29:05]} {[%emt 00:06:36]} Re8 {[%clk 00:58:53]} {[%emt 00:02:45]} 26. Nf4
{[%clk 00:26:45]} {[%emt 00:02:50]} cxd4 {[%clk 00:58:20]} {[%emt 00:01:04]} 27.
cxd4 {[%clk 00:26:36]} {[%emt 00:00:38]} Bxb3 {[%clk 00:51:58]} {[%emt
00:06:52]} 28. axb3 {[%clk 00:26:09]} {[%emt 00:00:58]} Qxb3 {[%clk 00:52:19]}
{[%emt 00:00:09]} 29. Rf1 {[%clk 00:25:28]} {[%emt 00:01:10]} Qe3+ {[%clk
00:52:41]} {[%emt 00:00:08]} 30. Kh1 {[%clk 00:25:09]} {[%emt 00:00:48]} Qf2
{[%clk 00:52:51]} {[%emt 00:00:20]} 31. Rg1 {[%clk 00:24:07]} {[%emt 00:01:33]}
Re1 {[%clk 00:51:00]} {[%emt 00:02:22]} 32. Nh3 {[%clk 00:23:48]} {[%emt
00:00:48]} Rxg1+ {[%clk 00:51:05]} {[%emt 00:00:26]} 33. Nxg1 {[%clk 00:24:16]}
{[%emt 00:00:02]} Qxd4 {[%clk 00:49:59]} {[%emt 00:01:35]} 34. Qc1 {[%clk
00:23:30]} {[%emt 00:01:16]} b5 {[%clk 00:49:58]} {[%emt 00:00:32]} 35. Ne2
{[%clk 00:23:10]} {[%emt 00:00:49]} Qe5 {[%clk 00:49:56]} {[%emt 00:00:32]} 36.
Bd3 {[%clk 00:22:42]} {[%emt 00:00:58]} a5 {[%clk 00:49:01]} {[%emt 00:01:25]}
37. Qc3 {[%clk 00:18:48]} {[%emt 00:04:24]} Qd5 {[%clk 00:49:20]} {[%emt
00:00:11]} 38. Nc1 {[%clk 00:17:53]} {[%emt 00:01:26]} b4 {[%clk 00:49:35]}
{[%emt 00:00:15]} 39. Qb3 {[%clk 00:16:52]} {[%emt 00:01:31]} Qe5 {[%clk
00:48:29]} {[%emt 00:01:36]} 40. Qd1 {[%clk 00:15:49]} {[%emt 00:01:33]} a4
{[%clk 00:48:40]} {[%emt 00:00:19]} 41. Bc2 {[%clk 00:15:38]} {[%emt 00:00:41]}
b3 {[%clk 00:48:43]} {[%emt 00:00:27]} 42. Bxb3 {[%clk 00:15:11]} {[%emt
00:00:57]} axb3 {[%clk 00:49:07]} {[%emt 00:00:06]} 43. Nxb3 {[%clk 00:15:35]}
{[%emt 00:00:05]} Ne6 {[%clk 00:49:15]} {[%emt 00:00:22]} 44. g3 {[%clk
00:15:19]} {[%emt 00:00:47]} h5 {[%clk 00:49:04]} {[%emt 00:00:41]} 45. Nd2
{[%clk 00:14:54]} {[%emt 00:00:55]} Nd4 {[%clk 00:45:28]} {[%emt 00:04:06]} 46.
Kg2 {[%clk 00:13:41]} {[%emt 00:01:43]} f4 {[%clk 00:45:44]} {[%emt 00:00:14]}
47. Nf1 {[%clk 00:12:58]} {[%emt 00:01:13]} Nf5 {[%clk 00:45:54]} {[%emt
00:00:20]} 48. Qd2 {[%clk 00:08:44]} {[%emt 00:04:44]} Ne3+ {[%clk 00:45:24]}
{[%emt 00:01:00]} 49. Nxe3 {[%clk 00:08:40]} {[%emt 00:00:34]} fxe3 {[%clk
00:45:49]} {[%emt 00:00:05]} 50. Qe2 {[%clk 00:09:00]} {[%emt 00:00:10]} g5
{[%clk 00:45:07]} {[%emt 00:01:13]} 51. g4 {[%clk 00:05:23]} {[%emt 00:04:07]}
Kg7 {[%clk 00:43:53]} {[%emt 00:01:44]} 52. Kg1 {[%clk 00:03:37]} {[%emt
00:02:16]} h4 {[%clk 00:42:16]} {[%emt 00:02:06]} 53. Kg2 {[%clk 00:04:01]}
{[%emt 00:00:06]} Qd4 {[%clk 00:41:10]} {[%emt 00:01:36]} 54. Qe1 {[%clk
00:04:13]} {[%emt 00:00:17]} Kf6 {[%clk 00:38:31]} {[%emt 00:03:09]} 55. Qe2
{[%clk 00:04:05]} {[%emt 00:00:38]} Qd2 {[%clk 00:35:04]} {[%emt 00:03:57]} 56.
Kf1 {[%clk 00:04:29]} {[%emt 00:00:06]} Qc1+ {[%clk 00:35:31]} {[%emt
00:00:03]} 57. Kg2 {[%clk 00:04:42]} {[%emt 00:00:17]} Kg7 {[%clk 00:35:40]}
{[%emt 00:00:21]} 58. Qb5 {[%clk 00:02:14]} {[%emt 00:02:58]} Qd2+ {[%clk
00:34:03]} {[%emt 00:02:07]} 59. Kh3 {[%clk 00:02:15]} {[%emt 00:00:29]} e2
{[%clk 00:34:08]} {[%emt 00:00:25]} 60. Qe5+ {[%clk 00:02:42]} {[%emt
00:00:03]} Kf8 {[%clk 00:34:29]} {[%emt 00:00:09]} 61. Qh8+ {[%clk 00:02:14]}
{[%emt 00:00:58]} Ke7 {[%clk 00:34:57]} {[%emt 00:00:02]} 62. Qe5+ {[%clk
00:02:42]} {[%emt 00:00:02]} Kd7 {[%clk 00:35:20]} {[%emt 00:00:06]} 63. Qf5+
{[%clk 00:02:11]} {[%emt 00:01:02]} Kd6 {[%clk 00:35:46]} {[%emt 00:00:04]} 64.
Qf6+ {[%clk 00:02:30]} {[%emt 00:00:11]} Kc5 {[%clk 00:36:11]} {[%emt
00:00:04]} 65. Qe5+ {[%clk 00:02:46]} {[%emt 00:00:14]} Kc4 {[%clk 00:36:38]}
{[%emt 00:00:04]} 66. Qe4+ {[%clk 00:02:56]} {[%emt 00:00:20]} Kc3 {[%clk
00:36:56]} {[%emt 00:00:11]} 67. Qc6+ {[%clk 00:03:22]} {[%emt 00:00:05]} Kb2
{[%clk 00:37:22]} {[%emt 00:00:04]} 68. Qf6+ {[%clk 00:03:13]} {[%emt
00:00:39]} Qc3 {[%clk 00:37:15]} {[%emt 00:00:37]} 69. Qb6+ {[%clk 00:03:38]}
{[%emt 00:00:05]} Kc1 {[%clk 00:37:42]} {[%emt 00:00:03]} 70. Qf2 {[%clk
00:02:32]} {[%emt 00:01:36]} e1=Q {[%clk 00:37:29]} {[%emt 00:00:43]} 71. Qd2+
{[%clk 00:02:28]} {[%emt 00:00:34]} Kxd2 {[%clk 00:37:54]} {[%emt 00:00:05]}
0-1

[Event "1er Festival international de Cassis 2022"]
[Site "Cassis"]
[Date "2022.05.26"]
[Round "1.5"]
[White "Movsziszian, Karen"]
[Black "Khallouf, Abdallah"]
[Result "1-0"]
[TimeControl "1 h 30 + 30 s"]
[WhiteElo "2467"]
[BlackElo "1808"]

1. e4 {[%clk 01:29:26]} {[%emt 00:01:33]} c6 {[%clk 01:30:46]} {[%emt
00:00:14]} 2. d3 {[%clk 01:29:19]} {[%emt 00:00:37]} d5 {[%clk 01:31:09]}
{[%emt 00:00:07]} 3. Nd2 {[%clk 01:29:48]} {[%emt 00:00:02]} e5 {[%clk
01:28:14]} {[%emt 00:03:24]} 4. Ngf3 {[%clk 01:30:16]} {[%emt 00:00:03]} Bd6
{[%clk 01:24:23]} {[%emt 00:04:20]} 5. g3 {[%clk 01:30:39]} {[%emt 00:00:07]}
Bg4 {[%clk 01:21:25]} {[%emt 00:03:27]} 6. Bg2 {[%clk 01:31:03]} {[%emt
00:00:07]} Qc8 {[%clk 01:18:01]} {[%emt 00:03:53]} 7. h3 {[%clk 01:31:26]}
{[%emt 00:00:08]} Bd7 {[%clk 01:15:25]} {[%emt 00:03:06]} 8. Qe2 {[%clk
01:30:12]} {[%emt 00:01:44]} Nf6 {[%clk 00:56:52]} {[%emt 00:19:02]} 9. exd5
{[%clk 01:28:18]} {[%emt 00:02:25]} O-O {[%clk 00:55:51]} {[%emt 00:01:30]} 10.
Nc4 {[%clk 01:27:33]} {[%emt 00:01:14]} Bb4+ {[%clk 00:48:22]} {[%emt
00:07:59]} 11. Bd2 {[%clk 01:21:00]} {[%emt 00:07:02]} e4 {[%clk 00:40:46]}
{[%emt 00:08:08]} 12. dxe4 {[%clk 01:18:31]} {[%emt 00:02:59]} Bxd2+ {[%clk
00:31:40]} {[%emt 00:09:35]} 13. Nfxd2 {[%clk 01:16:27]} {[%emt 00:02:34]} cxd5
{[%clk 00:29:56]} {[%emt 00:02:14]} 14. exd5 {[%clk 01:16:56]} {[%emt
00:00:02]} Re8 {[%clk 00:26:00]} {[%emt 00:04:26]} 15. Ne3 {[%clk 01:17:24]}
{[%emt 00:00:02]} Na6 {[%clk 00:25:40]} {[%emt 00:00:49]} 16. a3 {[%clk
01:16:19]} {[%emt 00:01:35]} Nc7 {[%clk 00:24:42]} {[%emt 00:01:28]} 17. c4
{[%clk 01:12:16]} {[%emt 00:04:33]} Rb8 {[%clk 00:24:41]} {[%emt 00:00:31]} 18.
g4 {[%clk 01:08:14]} {[%emt 00:04:32]} h6 {[%clk 00:21:24]} {[%emt 00:03:47]}
19. O-O {[%clk 01:08:01]} {[%emt 00:00:43]} b5 {[%clk 00:20:45]} {[%emt
00:01:09]} 20. Rac1 {[%clk 01:07:38]} {[%emt 00:00:54]} Qa6 {[%clk 00:19:40]}
{[%emt 00:01:35]} 21. Rfd1 {[%clk 01:06:20]} {[%emt 00:01:47]} Rbc8 {[%clk
00:17:49]} {[%emt 00:02:21]} 22. Nb3 {[%clk 01:02:08]} {[%emt 00:04:41]} bxc4
{[%clk 00:13:46]} {[%emt 00:04:34]} 23. Nc5 {[%clk 01:02:26]} {[%emt 00:00:11]}
Qb5 {[%clk 00:13:09]} {[%emt 00:01:08]} 24. Nxd7 {[%clk 00:59:47]} {[%emt
00:03:09]} Nxd7 {[%clk 00:13:36]} {[%emt 00:00:03]} 25. Rxc4 {[%clk 00:58:20]}
{[%emt 00:01:58]} Nb6 {[%clk 00:10:06]} {[%emt 00:04:00]} 26. Rc2 {[%clk
00:58:38]} {[%emt 00:00:11]} Qc4 {[%emt 00:03:53]} 27. Qd3 Qxd3 {[%clk
00:06:43]} 28. Re2 {[%clk 00:59:07]} {[%emt 00:00:02]} 1-0